bitfinex-derivatives/quotes_SOLF0:USTF0_20250914
["timestamp","ask_amount","ask_price","bid_price","bid_amount"]
[1757893371767,0.91655323,240.49,240.4,6.73]
[1757893372266,0.87655323,240.49,240.4,6.73]
[1757893373771,0.91655323,240.49,240.4,6.73]
[1757893374173,0.87655323,240.46,240.4,6.73]
[1757893374470,0.91655323,240.46,240.4,6.73]
[1757893374665,0.91655323,240.46,240.34,13.10878679]
[1757893374861,0.91655323,240.46,240.35,6.73]
[1757893375271,0.87655323,240.43,240.35,6.73]
[1757893378671,33.02,240.46,240.35,6.73]
[1757893378977,0.87655323,240.44,240.35,6.73]
[1757893381973,0.04,240.46,240.35,6.73]
[1757893382378,51.53655323,240.48,240.38,6.73]
[1757893383475,0.87655323,240.48,240.4,0.87655323]
[1757893383786,56.31655323,240.52,240.41,6.73]
[1757893385284,56.31655323,240.52,240.42,0.87655323]
[1757893385683,0.87655323,240.52,240.43,6.73]
[1757893386982,280.27655323,240.55,240.43,6.73]
[1757893387188,383.55655323,240.55,240.46,6.73]
[1757893389090,0.87655323,240.52,240.46,6.73]
[1757893390093,0.04,240.49,240.4,6.73]
[1757893390390,0.91655323,240.49,240.4,6.73]
[1757893394586,0.87655323,240.49,240.4,6.73]
[1757893394792,0.87655323,240.5,240.4,6.73]
[1757893396692,279.36,240.55,240.4,7.60655323]
[1757893397094,0.87655323,240.54,240.4,7.60655323]
[1757893397292,0.87655323,240.54,240.43,0.87655323]
[1757893397496,0.87655323,240.54,240.44,6.66]
[1757893397994,279.36,240.55,240.44,6.66]
[1757893398302,0.87655323,240.47,240.4,6.66]
[1757893398499,0.87655323,240.47,240.34,13.59702082]
[1757893398500,0.87655323,240.44,240.37,6.66]
[1757893401899,103.24,240.48,240.37,6.66]
[1757893402106,0.87655323,240.47,240.37,6.66]
[1757893402498,279.36,240.55,240.37,6.66]
[1757893402700,0.87655323,240.47,240.37,6.66]
[1757893403202,279.36,240.55,240.37,6.66]
[1757893403505,0.87655323,240.48,240.37,6.66]
[1757893404199,0.87655323,240.45,240.37,6.66]
[1757893411099,41.46,240.54,240.37,6.66]
[1757893411100,0.87655323,240.42,240.37,6.66]
[1757893411309,0.87655323,240.43,240.35,6.66]
[1757893411501,0.87655323,240.46,240.35,6.66]
[1757893414907,0.87655323,240.43,240.35,6.66]
[1757893416601,9.0,240.53,240.35,6.66]
[1757893416798,0.87655323,240.45,240.35,6.66]
[1757893417398,0.87655323,240.42,240.35,6.66]
[1757893417601,0.87655323,240.39,240.35,6.66]
[1757893418708,0.87655323,240.39,240.26,40.10580053]
[1757893418709,0.87655323,240.36,240.3,6.66]
[1757893420412,0.87655323,240.39,240.3,6.66]
[1757893420709,24.76,240.43,240.3,6.66]
[1757893420910,0.87655323,240.4,240.3,6.66]
[1757893422702,0.87655323,240.4,240.3,19.17059549]
[1757893424308,0.87655323,240.4,240.31,6.95]
[1757893428413,0.87655323,240.41,240.31,6.95]
[1757893431921,1.37071125,240.42,240.31,6.95]
[1757893433023,0.04,240.43,240.31,6.95]
[1757893439823,0.04,240.42,240.31,6.95]
[1757893445623,0.04,240.41,240.31,6.95]
[1757893446231,1.37071125,240.44,240.31,6.95]
[1757893446735,0.04,240.45,240.31,6.95]
[1757893447332,0.04,240.45,240.31,11.52294574]
[1757893447535,0.04,240.45,240.31,6.95]
[1757893447736,1.37071125,240.48,240.32,1.37071125]
[1757893448029,280.77071125,240.55,240.37,7.05]
[1757893448231,305.89071125,240.55,240.38,7.05]
[1757893449034,0.04,240.54,240.38,7.05]
[1757893449235,306.57452751,240.55,240.38,7.05]
[1757893449438,0.04,240.54,240.38,7.05]
[1757893450843,1.41071125,240.54,240.38,7.05]
[1757893451427,104.51071125,240.54,240.4,6.77]
[1757893452137,103.14,240.54,240.42,6.77]
[1757893453732,1.37071125,240.62,240.46,6.77]
[1757893454034,103.08,240.58,240.46,8.14071125]
[1757893454335,1.37071125,240.62,240.46,8.14071125]
[1757893454537,1.37071125,240.66,240.51,6.77]
[1757893454727,102.16,240.64,240.51,6.77]
[1757893457733,102.16,240.64,240.4,6.83294109]
[1757893457734,1.37071125,240.62,240.44,8.14071125]
[1757893459440,1.37071125,240.62,240.49,6.77]
[1757893461044,21.03071125,240.62,240.49,6.77]
[1757893468452,1.37071125,240.62,240.49,6.77]
[1757893468652,1.37071125,240.62,240.49,8.14071125]
[1757893470648,19.28,240.65,240.49,8.14071125]
[1757893471953,55.62,240.65,240.49,8.14071125]
[1757893475059,55.62,240.65,240.49,6.77]
[1757893475553,1.37071125,240.62,240.49,6.77]
[1757893477754,0.72350024,240.66,240.49,6.77]
[1757893477953,1.37071125,240.63,240.49,6.77]
[1757893481161,1.37071125,240.59,240.49,6.77]
[1757893484261,0.03,240.58,240.49,6.77]
[1757893484964,1.37071125,240.59,240.49,6.77]
[1757893485156,0.03,240.58,240.49,6.77]
[1757893486365,1.40071125,240.55,240.49,6.77]
[1757893489458,1.37071125,240.55,240.49,6.77]
[1757893490663,1.37071125,240.51,240.43,6.79]
[1757893493566,1.37071125,240.47,240.43,6.79]
[1757893493766,0.87690234,240.44,240.38,6.79]
[1757893495270,0.03,240.46,240.38,6.79]
[1757893495466,0.87690234,240.47,240.38,6.79]
[1757893496365,87.0335034,240.62,240.38,6.79]
[1757893496574,0.87690234,240.49,240.38,6.79]
[1757893497268,0.87690234,240.49,240.4,6.98]
[1757893499473,0.87690234,240.52,240.4,6.98]
[1757893500269,9.0,240.6,240.46,6.98]
[1757893500470,0.87690234,240.53,240.46,6.98]
[1757893503879,0.87690234,240.5,240.41,6.98]
[1757893507378,0.87690234,240.47,240.41,6.98]
[1757893508384,0.87690234,240.44,240.34,6.98]
[1757893511080,0.87690234,240.41,240.34,6.98]
[1757893511383,0.91690234,240.41,240.34,6.98]
[1757893512787,0.87690234,240.41,240.34,6.98]
[1757893513489,0.04,240.44,240.34,6.98]
[1757893513685,0.87690234,240.41,240.34,6.98]
[1757893513882,0.04,240.44,240.34,6.98]
[1757893514094,0.87690234,240.42,240.34,6.98]
[1757893515284,0.04,240.41,240.34,6.98]
[1757893515483,0.87690234,240.39,240.31,6.64]
[1757893518590,0.87690234,240.36,240.31,6.64]
[1757893518786,0.87690234,240.33,240.27,6.64]
[1757893519193,0.04,240.35,240.27,6.64]
[1757893519692,0.04,240.35,240.27,19.13218803]
[1757893520690,0.04,240.35,240.27,6.64]
[1757893522191,7.32,240.34,240.27,6.64]
[1757893522581,10.18,240.34,240.27,6.64]
[1757893523184,0.04,240.33,240.23,0.87690234]
[1757893523387,0.04,240.33,240.24,6.64]
[1757893525395,12.04,240.33,240.24,6.64]
[1757893525796,0.04,240.33,240.24,6.64]
[1757893525997,2.32,240.32,240.24,6.64]
[1757893526397,4.42,240.33,240.24,6.64]
[1757893526792,6.32,240.33,240.24,6.64]
[1757893528801,8.1,240.33,240.24,6.64]
[1757893529000,0.91690234,240.37,240.25,0.87690234]
[1757893529202,0.91690234,240.37,240.26,6.64]
[1757893529203,10.59690234,240.37,240.26,6.64]
[1757893529400,9.72,240.37,240.26,6.64]
[1757893529606,18.85690234,240.37,240.26,6.64]
[1757893530509,0.04,240.36,240.26,6.64]
[1757893531202,0.87690234,240.35,240.26,6.64]
[1757893531910,0.04,240.34,240.26,6.64]
[1757893533503,4.59080663,240.5,240.26,6.64]
[1757893533708,4.59080663,240.5,240.23,12.72141389]
[1757893533709,0.04,240.42,240.24,6.78]
[1757893533907,0.04,240.42,240.31,6.78]
[1757893534802,23.28,240.41,240.31,6.78]
[1757893535005,39.51690234,240.42,240.31,6.78]
[1757893536207,0.91690234,240.42,240.31,6.78]
[1757893536408,54.89690234,240.42,240.34,6.78]
[1757893537410,0.91690234,240.42,240.34,6.78]
[1757893540213,0.04,240.38,240.28,6.78]
[1757893541420,0.87690234,240.39,240.28,6.78]
[1757893542319,84.37690234,240.39,240.28,6.78]
[1757893542618,83.5,240.39,240.28,6.78]
[1757893542815,0.87690234,240.37,240.28,6.78]
[1757893543312,0.87690234,240.34,240.28,6.78]
[1757893543520,0.87690234,240.31,240.28,6.78]
[1757893543915,0.87690234,240.31,240.24,6.53]
[1757893544215,89.77690234,240.35,240.24,6.53]
[1757893544618,0.87690234,240.35,240.24,6.53]
[1757893547319,0.87690234,240.32,240.24,6.53]
[1757893547519,0.87690234,240.29,240.25,6.53]
[1757893547921,0.87690234,240.29,240.17,6.53]
[1757893548323,0.87690234,240.33,240.2,6.53]
[1757893548628,0.87690234,240.3,240.2,6.53]
[1757893551420,279.56,240.42,240.2,6.53]
[1757893551620,0.87690234,240.32,240.2,6.53]
[1757893553824,19.53185524,240.33,240.2,6.53]
[1757893554222,0.07,240.32,240.2,6.53]
[1757893559126,0.07,240.28,240.2,6.53]
[1757893561631,35.4,240.29,240.2,6.53]
[1757893561821,53.01185524,240.3,240.2,6.53]
[1757893562026,1.37185524,240.3,240.2,6.53]
[1757893562326,68.51185524,240.3,240.2,6.53]
[1757893562524,68.51185524,240.3,240.15,6.51]
[1757893562525,0.07,240.29,240.15,6.51]
[1757893562931,69.9,240.28,240.15,6.51]
[1757893563527,0.07,240.29,240.15,19.01092716]
[1757893563732,68.92,240.27,240.16,6.51]
[1757893564338,68.99,240.27,240.16,6.51]
[1757893564832,0.07,240.27,240.16,6.51]
[1757893565027,67.98,240.26,240.16,6.51]
[1757893565335,0.07,240.27,240.16,6.51]
[1757893566230,67.2,240.29,240.16,6.51]
[1757893566631,77.8,240.3,240.16,6.51]
[1757893567134,0.07,240.31,240.16,6.51]
[1757893567338,19.15,240.31,240.16,6.51]
[1757893567834,0.07,240.25,240.14,6.51]
[1757893568135,37.2,240.24,240.14,6.51]
[1757893568536,306.08,240.23,240.06,6.83294109]
[1757893568727,77.91036933,240.06,240.0,110.0]
[1757893568928,4.59080663,240.19,240.01,6.51]
[1757893569228,4.59080663,240.19,240.0,110.0]
[1757893569229,88.54,240.19,240.0,110.0]
[1757893569438,1.37185524,240.03,240.0,110.0]
[1757893569731,105.76,240.07,240.0,110.0]
[1757893569926,2.74371048,240.01,239.81,6.51]
[1757893570132,1.37185524,239.88,239.59,6.51]
[1757893570332,1.37185524,239.76,239.58,12.32916916]
[1757893570532,1.37185524,239.72,239.54,6.51]
[1757893570732,1.37185524,239.62,239.45,12.643915]
[1757893570936,4.06,239.61,239.41,1.37185524]
[1757893571140,3.13469776,239.6,239.4,1.37185524]
[1757893571336,3.1142038,239.59,239.41,6.51]
[1757893571536,3.11395553,239.58,239.54,1.37185524]
[1757893571733,0.05,239.66,239.37,34.05239753]
[1757893571935,0.05,239.64,239.38,6.68]
[1757893572132,113.04327639,239.63,239.38,6.68]
[1757893572335,3.62893704,239.58,239.27,6.68]
[1757893572534,3.06327639,239.57,239.29,3.62893704]
[1757893572737,0.05,239.55,239.2,6.68]
[1757893572937,0.05,239.51,239.2,10.30893704]
[1757893573138,0.05,239.49,239.25,6.68]
[1757893573341,0.05,239.48,239.25,6.68]
[1757893573540,0.05,239.48,239.37,3.62893704]
[1757893573740,17.00160619,239.81,239.44,6.68]
[1757893573945,0.05,239.79,239.49,10.30893704]
[1757893574142,2.99826945,239.78,239.49,6.68]
[1757893574448,0.05,239.74,239.49,6.68]
[1757893574739,0.05,239.73,239.49,6.68]
[1757893575243,10.6,239.72,239.49,6.68]
[1757893576547,3.62893704,239.75,239.49,6.68]
[1757893577242,3.62893704,239.75,239.51,6.68]
[1757893578249,3.62893704,239.75,239.53,6.68]
[1757893579148,3.62893704,239.75,239.55,6.68]
[1757893579652,0.05,239.74,239.55,6.68]
[1757893581239,3.62893704,239.75,239.55,6.68]
[1757893581642,91.44,239.78,239.55,19.15]
[1757893581847,279.86,239.83,239.58,19.15]
[1757893582046,3.62893704,239.85,239.6,19.15]
[1757893582242,3.62893704,239.85,239.58,280.18]
[1757893582243,3.62893704,239.85,239.62,6.68]
[1757893582549,3.62893704,239.85,239.64,6.68]
[1757893583445,3.62893704,239.85,239.66,6.68]
[1757893583652,34.2,239.9,239.66,6.68]
[1757893584850,280.18,239.97,239.7,6.68]
[1757893585155,280.18,239.97,239.72,6.68]
[1757893585656,115.02,240.0,239.77,6.68]
[1757893585862,115.02,240.0,239.79,6.68]
[1757893586064,115.02,240.0,239.81,6.68]
[1757893586266,3.62893704,240.02,239.81,6.68]
[1757893586563,0.05,240.01,239.81,6.68]
[1757893589173,0.05,239.96,239.81,6.68]
[1757893589474,34.61,239.96,239.81,6.68]
[1757893590073,0.05,239.91,239.67,6.68]
[1757893590270,0.05,239.91,239.69,6.68]
[1757893591572,3.62893704,239.87,239.69,6.68]
[1757893591969,0.05,239.86,239.69,6.68]
[1757893592870,0.05,239.86,239.54,62.0]
[1757893592871,3.67893704,239.82,239.52,6.68]
[1757893593075,3.62893704,239.77,239.56,6.68]
[1757893594078,10.3,239.78,239.56,6.68]
[1757893594371,3.62893704,239.76,239.56,6.68]
[1757893595071,3.62893704,239.7,239.56,6.68]
[1757893595376,3.62893704,239.76,239.56,6.68]
[1757893595675,0.05,239.78,239.56,6.68]
[1757893596175,0.05,239.91,239.62,19.15]
[1757893596373,3.03344236,239.91,239.64,6.68]
[1757893596570,0.05,239.91,239.67,10.4335]
[1757893596768,0.05,239.91,239.69,6.68]
[1757893597478,280.12,239.92,239.72,6.68]
[1757893597977,280.12,239.92,239.74,6.68]
[1757893598681,0.05,239.91,239.74,6.68]
[1757893599678,280.12,239.92,239.74,6.68]
[1757893600070,115.07,239.96,239.74,6.68]
[1757893600272,115.07,239.96,239.75,14.04]
[1757893600472,0.05,239.94,239.76,6.68]
[1757893600673,0.05,239.93,239.76,6.68]
[1757893602478,3.62893704,239.94,239.76,6.68]
[1757893602678,3.04000124,239.93,239.76,6.68]
[1757893605371,7.9,239.92,239.76,6.68]
[1757893605573,3.04000124,239.91,239.76,6.68]
[1757893606573,3.04000124,239.9,239.76,6.68]
[1757893607475,11.62,239.91,239.61,3.62893704]
[1757893607476,6.66893828,239.89,239.61,3.62893704]
[1757893607675,3.04000124,239.88,239.62,6.6]
[1757893607875,3.04000124,239.87,239.62,6.6]
[1757893608071,3.04000124,239.86,239.62,6.6]
[1757893608275,3.04000124,239.85,239.62,6.6]
[1757893608577,3.04000124,239.84,239.62,6.6]
[1757893608771,3.04000124,239.83,239.62,6.6]
[1757893608979,3.04000124,239.82,239.62,6.6]
[1757893609181,3.04000124,239.81,239.62,6.6]
[1757893609381,3.04000124,239.8,239.62,6.6]
[1757893609572,3.04000124,239.79,239.62,6.6]
[1757893609775,3.04000124,239.78,239.64,6.6]
[1757893609974,4.42,239.86,239.64,6.6]
[1757893610176,3.0505101,239.85,239.64,6.6]
[1757893610376,3.0505101,239.84,239.64,6.6]
[1757893610577,3.0505101,239.83,239.64,6.6]
[1757893610775,3.0505101,239.82,239.64,6.6]
[1757893610980,6.83604329,239.99,239.61,118.10893704]
[1757893610981,3.0505101,239.81,239.67,6.6]
[1757893611175,3.62893704,239.94,239.67,6.6]
[1757893611379,6.09380922,239.93,239.67,6.6]
[1757893611575,3.01380922,239.92,239.72,6.6]
[1757893611884,3.01380922,239.91,239.72,6.6]
[1757893612187,3.01380922,239.9,239.77,6.6]
[1757893612482,3.01380922,239.89,239.77,6.6]
[1757893612684,2.86,239.99,239.77,6.6]
[1757893612685,3.01380922,239.88,239.77,6.6]
[1757893612876,4.04,239.99,239.77,6.6]
[1757893613081,3.00936636,239.98,239.77,6.6]
[1757893613281,3.00936636,239.97,239.77,6.6]
[1757893613480,3.00936636,239.96,239.77,6.6]
[1757893613684,3.00936636,239.95,239.77,6.6]
[1757893613884,3.00936636,239.94,239.77,6.6]
[1757893614078,3.00936636,239.93,239.77,6.6]
[1757893614277,3.00936636,239.92,239.77,6.6]
[1757893614478,3.00936636,239.91,239.78,6.6]
[1757893614783,3.00936636,239.9,239.78,6.6]
[1757893614981,3.00936636,239.89,239.78,6.6]
[1757893615180,3.00936636,239.88,239.78,6.6]
[1757893615376,5.04,240.02,239.78,6.6]
[1757893615685,2.96622665,240.01,239.8,6.84]
[1757893615983,2.96622665,240.0,239.81,6.84]
[1757893616179,2.96622665,239.99,239.81,6.84]
[1757893616483,2.96622665,239.98,239.85,6.84]
[1757893616782,2.96622665,239.97,239.85,6.84]
[1757893616984,2.96622665,239.96,239.85,6.84]
[1757893617182,2.96622665,239.95,239.85,6.84]
[1757893617382,2.96622665,239.94,239.85,6.84]
[1757893617582,86.48,240.06,239.85,6.84]
[1757893617785,2.97044281,240.05,239.85,6.84]
[1757893617983,2.97044281,240.04,239.85,6.84]
[1757893618181,2.97044281,240.03,239.85,6.84]
[1757893618387,2.97044281,240.02,239.85,6.84]
[1757893618590,2.97044281,240.01,239.85,6.84]
[1757893618883,2.97044281,240.0,239.85,6.84]
[1757893619085,280.18,240.07,239.82,33.06]
[1757893619086,2.97044281,239.99,239.89,6.84]
[1757893619390,2.97044281,239.98,239.89,6.84]
[1757893619587,280.18,240.07,239.92,2.1399583]
[1757893619786,2.96483501,240.06,239.93,6.84]
[1757893619986,2.96483501,240.05,239.93,19.1462033]
[1757893620186,2.96483501,240.04,239.93,6.84]
[1757893620388,2.96483501,240.03,239.93,6.84]
[1757893620686,2.96483501,240.02,239.93,6.84]
[1757893620879,2.96483501,240.01,239.93,6.84]
[1757893621190,78.661461,240.13,239.97,6.84]
[1757893621386,2.95604126,240.12,239.97,6.84]
[1757893621592,2.95604126,240.11,239.97,6.84]
[1757893621790,2.95604126,240.1,239.97,6.84]
[1757893621991,2.95604126,240.09,239.97,6.84]
[1757893622189,2.95604126,240.08,239.97,6.84]
[1757893622384,2.95604126,240.07,239.97,6.84]
[1757893622588,2.95604126,240.06,239.97,6.84]
[1757893622788,78.661461,240.13,239.97,6.84]
[1757893622989,2.9000594,240.12,239.97,6.84]
[1757893623290,2.9000594,240.11,239.97,6.84]
[1757893623491,2.9000594,240.1,239.97,6.84]
[1757893623793,2.9000594,240.12,239.97,6.84]
[1757893623991,2.9000594,240.11,239.97,6.84]
[1757893624192,2.9000594,240.1,239.97,6.84]
[1757893624393,2.9000594,240.12,239.97,6.84]
[1757893624595,2.9000594,240.11,239.97,6.84]
[1757893624794,2.9000594,240.12,239.97,6.84]
[1757893624992,78.661461,240.13,239.97,6.84]
[1757893624993,2.9000594,240.11,239.97,6.84]
[1757893625190,2.9000594,240.12,239.97,6.84]
[1757893625591,2.9000594,240.11,239.97,40.80718923]
[1757893625797,2.9000594,240.1,239.97,6.84]
[1757893625995,5.0400177,240.12,239.97,6.84]
[1757893626195,2.9000594,240.11,239.97,6.84]
[1757893627389,5.0400177,240.12,239.97,6.84]
[1757893627998,2.1399583,240.04,239.91,6.84]
[1757893628299,2.9000594,240.07,239.91,6.84]
[1757893628493,5.0400177,240.08,239.91,6.84]
[1757893628798,2.9000594,240.07,239.91,19.59215517]
[1757893629099,2.1399583,240.08,239.91,19.59215517]
[1757893630099,2.9000594,240.09,239.92,6.84]
[1757893630802,2.1399583,240.1,239.92,6.84]
[1757893631201,2.9000594,240.12,239.93,6.84]
[1757893631798,2.1399583,240.16,239.93,6.54]
[1757893631999,2.1399583,240.16,239.98,6.54]
[1757893632397,5.02621067,240.16,239.99,6.54]
[1757893632603,2.1399583,240.16,239.99,6.54]
[1757893632801,2.1399583,240.16,240.0,3.7483]
[1757893633102,2.1399583,240.16,240.01,6.54]
[1757893634202,2.1399583,240.16,240.02,3.748]
[1757893634396,2.1399583,240.16,240.03,6.54]
[1757893635399,2.87169635,240.2,240.04,3.7477]
[1757893635604,280.08,240.21,240.05,6.54]
[1757893636000,2.1399583,240.28,240.05,6.54]
[1757893636196,279.92,240.36,240.04,24.26]
[1757893636197,112.32,240.3,240.08,6.54]
[1757893636704,112.32,240.3,240.12,3.7465]
[1757893636903,112.32,240.3,240.13,6.54]
[1757893638006,112.32,240.3,240.1,6.54]
[1757893638201,112.32,240.3,240.1,17.74]
[1757893639205,112.32,240.3,240.11,3.7466]
[1757893639404,2.1399583,240.32,240.12,6.54]
[1757893640702,2.1399583,240.32,240.13,3.7462]
[1757893640897,2.1399583,240.27,240.09,32.93375112]
[1757893641097,2.1399583,240.22,240.09,6.54]
[1757893642999,2.1399583,240.17,240.02,6.54]
[1757893646803,2.1399583,240.17,240.02,33.51044245]
[1757893647111,2.1399583,240.22,240.03,6.54]
[1757893650215,4.99944864,240.22,240.03,6.54]
[1757893651911,4.99944864,240.22,240.04,6.54]
[1757893652112,2.1399583,240.22,240.04,6.54]
[1757893652310,5.00108694,240.24,240.04,6.54]
[1757893652609,2.1399583,240.24,240.04,6.54]
[1757893653206,5.00232977,240.28,240.04,6.54]
[1757893653407,2.1399583,240.24,240.03,6.54]
[1757893655117,2.1399583,240.24,240.06,6.54]
[1757893655318,2.86237147,240.26,240.06,6.54]
[1757893655518,2.86237147,240.28,240.08,6.54]
[1757893655812,2.1399583,240.29,240.12,6.54]
[1757893659017,279.92,240.36,240.12,6.54]
[1757893659018,2.86237147,240.31,240.12,6.54]
[1757893659217,2.1399583,240.32,240.12,6.54]
[1757893659715,2.1399583,240.32,240.13,6.54]
[1757893660316,5.00232977,240.32,240.13,6.54]
[1757893660514,2.86237147,240.31,240.13,6.54]
[1757893660721,2.1399583,240.32,240.15,6.54]
[1757893661122,5.00232977,240.32,240.15,6.54]
[1757893661424,2.86237147,240.31,240.15,6.54]
[1757893662519,2.86237147,240.32,240.15,6.54]
[1757893662722,2.86237147,240.31,240.15,6.54]
[1757893662917,2.86237147,240.32,240.15,6.54]
[1757893663123,2.86237147,240.31,240.15,6.54]
[1757893663314,2.86237147,240.3,240.15,6.54]
[1757893663518,2.86237147,240.32,240.15,6.54]
[1757893663719,2.86237147,240.32,240.16,6.59]
[1757893663921,2.86237147,240.35,240.16,6.59]
[1757893664120,2.86237147,240.34,240.16,6.59]
[1757893664422,2.86237147,240.35,240.2,6.59]
[1757893665221,2.1399583,240.31,240.2,6.59]
[1757893665416,2.1399583,240.31,240.1,6.59]
[1757893665621,2.1399583,240.27,240.1,6.59]
[1757893667035,2.1399583,240.27,240.11,3.7466]
[1757893667322,2.1399583,240.27,240.12,6.59]
[1757893669026,2.86237147,240.3,240.12,6.59]
[1757893669233,5.00232977,240.31,240.12,6.59]
[1757893670319,2.1399583,240.23,240.12,6.59]
[1757893670624,2.1399583,240.23,240.06,6.59]
[1757893670827,2.1399583,240.19,240.06,6.59]
[1757893674728,5.00542315,240.19,240.06,6.59]
[1757893674937,2.1399583,240.19,240.06,6.59]
[1757893677735,2.8695765,240.22,240.06,6.59]
[1757893679729,14.32,240.23,240.06,6.59]
[1757893680030,2.8695765,240.22,240.06,6.59]
[1757893680533,17.98,240.23,240.06,6.59]
[1757893680836,2.8695765,240.22,240.06,6.59]
[1757893681530,2.87463529,240.26,240.06,6.59]
[1757893682034,2.87463529,240.26,240.11,7.15]
[1757893682228,55.46,240.29,240.11,7.15]
[1757893682426,2.87463529,240.28,240.11,7.15]
[1757893683032,110.35463529,240.31,240.11,7.15]
[1757893683228,2.87463529,240.3,240.04,3.61308571]
[1757893683435,2.87463529,240.3,240.05,7.15]
[1757893683834,109.52,240.3,240.1,7.15]
[1757893684037,2.87463529,240.29,240.1,7.15]
[1757893684538,2.87463529,240.35,240.14,3.61308571]
[1757893684841,2.87463529,240.35,240.15,7.15]
[1757893685045,9.0,240.34,240.15,7.15]
[1757893685240,3.61308571,240.32,240.15,7.15]
[1757893685434,73.41463529,240.31,240.15,7.15]
[1757893685634,2.87463529,240.3,240.15,7.15]
[1757893685831,9.0,240.29,240.15,7.15]
[1757893686040,2.87463529,240.28,240.15,7.15]
[1757893687539,2.87463529,240.28,240.08,7.15]
[1757893688537,2.87463529,240.28,240.09,7.15]
[1757893688940,2.87463529,240.28,240.1,7.15]
[1757893689644,97.61463529,240.28,240.1,7.15]
[1757893689843,2.87463529,240.27,240.1,7.15]
[1757893690345,2.87463529,240.27,240.11,7.15]
[1757893690541,2.87463529,240.28,240.11,7.15]
[1757893693244,109.18,240.27,240.11,7.15]
[1757893693443,2.87463529,240.26,240.11,7.15]
[1757893694651,2.87463529,240.28,240.11,7.15]
[1757893697351,15.487721,240.27,240.11,7.15]
[1757893697547,11.87463529,240.26,240.11,7.15]
[1757893697747,2.87463529,240.25,240.11,7.15]
[1757893697946,2.87463529,240.24,240.11,7.15]
[1757893698147,3.61308571,240.22,240.03,6.8]
[1757893698353,299.22604329,240.36,240.03,6.8]
[1757893698354,3.61308571,240.17,240.03,6.8]
[1757893698556,2.87463529,240.16,240.03,6.8]
[1757893698756,8.46,240.15,240.03,6.8]
[1757893698952,2.87463529,240.14,240.03,6.8]
[1757893700147,2.87463529,240.14,239.94,6.8]
[1757893700454,3.61308571,240.12,239.94,6.8]
[1757893700654,2.87463529,240.11,239.94,6.8]
[1757893701350,55.34,240.1,239.94,6.8]
[1757893701551,106.56,240.11,239.94,6.8]
[1757893701750,2.82464791,240.1,239.94,6.8]
[1757893702257,106.56,240.11,239.94,6.8]
[1757893702451,3.61308571,240.12,239.94,6.8]
[1757893702654,2.82295204,240.11,239.94,6.8]
[1757893702954,3.61308571,240.16,239.95,6.8]
[1757893703158,2.82301671,240.15,239.95,6.8]
[1757893704453,283.35308571,240.19,239.95,6.8]
[1757893704454,61.95308571,240.14,239.95,6.8]
[1757893704654,2.82301671,240.13,239.95,6.8]
[1757893704854,109.78301671,240.13,239.95,6.8]
[1757893705054,2.82301671,240.12,239.95,6.8]
[1757893705253,111.42301671,240.13,239.95,6.8]
[1757893705453,2.82301671,240.12,239.95,6.8]